Cogmind - Beta 15 @@@ ROGUE MODE // 2025.07.24 @ 17:21:48 Player: Florist Result: Destroyed by S-10 Pest with Light Assault Rifle Performance ------------- Evolutions (0) 0 Regions Visited (4) 800 Robots Destroyed (37) 185 Value Destroyed (939) 939 Prototype IDs (23) 460 Alien Tech Used (0) 0 Bonus (300) 300 TOTAL SCORE: 2684 Bonus ------- Aligned with FarCom 300 Cogmind --------- Core Integrity 0/250 Matter 183/300 Energy 100/100 System Corruption 1% Temperature Cool (0) Movement Rolling (175) Ox5 Location -9/Mines Parts ------- > --- POWER (1) -------- (None) > --- PROPULSION (2) --- Light Treads (fused) Compact Wheel > --- UTILITY (2) ------ Huge Storage Unit Light Armor Plating > --- WEAPON (2) ------- Grenade Launcher Grenade Launcher > --- INVENTORY (25) --- Light Nuclear Core Improved Heat Sink Small Storage Unit Huge Storage Unit Structural Scanner Visual Processing Unit Seismic Detector Army-in-a-Box (30/30) EM Pulse Gun Small Laser Small Laser Small Laser Assault Rifle Assault Rifle Light Cannon Mining Laser Peak State ------------ > --- POWER ------------ Light Nuclear Core > --- PROPULSION ------- Light Treads Compact Wheel > --- UTILITY ---------- Improved Heat Sink Huge Storage Unit > --- WEAPON ----------- Grenade Launcher Grenade Launcher > --- INVENTORY -------- Light Nuclear Core Small Storage Unit Huge Storage Unit Structural Scanner Visual Processing Unit Seismic Detector Light Armor Plating Army-in-a-Box EM Pulse Gun Small Laser Small Laser Small Laser Assault Rifle Assault Rifle Light Cannon Mining Laser [Rating: 18] Favorites ----------- Power Light Nuclear Core Engine Ion Engine Power Core Light Nuclear Core Propulsion Light Treads Treads Light Treads Wheel Compact Wheel Utility Huge Storage Unit Device Improved Heat Sink Storage Huge Storage Unit Protection Light Armor Plating Weapon Small Laser Energy Gun Small Laser Launcher Grenade Launcher Build | -11 -10 -10 -10 -9 ------- Run | Yrd Mat Min Exi Min Slots Evolved . | . . . . . Power . | . . . . . Propulsion . | . . . . . Utility . | . . . . . Weapon . | . . . . . Parts Attached 17 | 7 6 . . 4 Power 2 | 1 1 . . . Engine 1 | 1 . . . . Core 1 | . 1 . . . Reactor . | . . . . . Propulsion 5 | 2 2 . . 1 Treads 3 | 2 1 . . . Leg . | . . . . . Wheel 2 | . 1 . . 1 Hover . | . . . . . Flight . | . . . . . Utility 5 | 2 2 . . 1 Device 2 | 1 1 . . . Storage 2 | 1 1 . . . Processor . | . . . . . Hackware . | . . . . . Protection 1 | . . . . 1 Artifact . | . . . . . Weapon 5 | 2 1 . . 2 Energy Gun 3 | 2 1 . . . Energy Cannon . | . . . . . Ballistic Gun . | . . . . . Ballistic Cannon . | . . . . . Launcher 2 | . . . . 2 Special Weapon . | . . . . . Impact Weapon . | . . . . . Slashing Weapon . | . . . . . Piercing Weapon . | . . . . . Special Melee Weapon . | . . . . . Unidentified Prototypes . | . . . . . Parts Lost 7 | . 5 . . 2 Power 2 | . 1 . . 1 Propulsion 3 | . 2 . . 1 Utility 1 | . 1 . . . Weapon 1 | . 1 . . . Highest Loss Streak 2 | . 2 . . 1 To Critical Strikes . | . . . . . Average Backups 13 | 2 10 14 18 16 Power . | . . 1 1 1 Propulsion 1 | 1 1 1 1 . Utility 4 | . 3 5 6 7 Weapon 6 | . 4 7 9 8 Tool/Special . | . . . . . Unused Backups 13 | . 1 . . 12 Power 2 | . 1 . . 1 Propulsion . | . . . . . Utility 5 | . . . . 5 Weapon 6 | . . . . 6 Tool/Special . | . . . . . Average Slot Usage (%) 89 | . 90 100 72 89 Engine 3 | . 8 . . . Core 9 | . 5 14 14 4 Treads 15 | . 18 14 14 14 Wheel 10 | . 5 14 14 13 Device 11 | . 9 14 14 4 Storage 14 | . 14 14 14 14 Protection 1 | . . . . 9 Energy Gun 20 | . 27 28 1 . Launcher 3 | . . . . 27 Peak Build Rating 18 | 7 12 12 16 18 Average Rating 11 | 5 8 12 14 14 On Entrance 9 | . 7 12 12 16 Naked Turns . | . . . . . Heaviest Build 92 | 14 89 88 88 92 Greatest Support 40 | 40 40 16 16 16 Greatest Overweight (x) 5 | . 5 5 5 5 Average Overweight (x) 4 | . 3 5 5 5 Largest Inventory Capacity 25 | 8 25 25 25 25 Average Capacity 23 | 7 24 25 25 25 Most Carried 24 | 4 15 16 24 23 Average Carried 14 | 2 10 14 21 21 Final Capacity 25 | 8 25 25 25 25 Final Carried 24 | 4 14 16 24 21 Class Distribution -------------------- 100% | Mutant Dominant Class ---------------- Mutant | -10/Materials Mutant | -10/Mines Mutant | -10/Exiles Mutant | -9/Mines Resources | -11 -10 -10 -10 -9 ----------- Run | Yrd Mat Min Exi Min Matter Collected 443 | 231 99 . . 113 Remotely . | . . . . . Salvage Created 1133 | 74 851 . . 208 Parts 75 | 8 50 . . 17 Haulers Intercepted 2 | . 2 . . . Recyclers Shooed 2 | . 2 . . . Parts Field Recycled . | . . . . . Retrieved Matter . | . . . . . Parts Self-Destructed . | . . . . . Prevented . | . . . . . Kills | -11 -10 -10 -10 -9 ------- Run | Yrd Mat Min Exi Min Combat Hostiles Destroyed 28 | . 15 . . 13 Guns 15 | . 15 . . . AOE 13 | . . . . 13 Classes Destroyed 9 | 1 6 . . 2 Worker 1 | . 1 . . . Tunneler 3 | 3 . . . . Hauler 2 | . 2 . . . Recycler 1 | . 1 . . . Operator 1 | . 1 . . . Watcher 1 | . 1 . . . Swarmer 6 | . . . . 6 Grunt 21 | . 15 . . 6 Brawler 1 | . . . . 1 Best Kill Streak 6 | 2 5 . . 6 Combat Bots Only 6 | . 4 . . 6 Max Kills in Single Turn 3 | 1 1 . . 3 Gunslinging . | . . . . . Exploded 3 | . . . . 3 Melee . | . . . . . Uniques/NPCs Destroyed . | . . . . . Combat | -11 -10 -10 -10 -9 -------- Run | Yrd Mat Min Exi Min Hostile Shots Fired 107 | . 82 . . 25 Missed 20 | . 13 . . 7 Hits 87 | . 69 . . 18 Projectile 87 | . 69 . . 18 Damage Taken 1090 | . 826 . . 264 Core 252 | . 191 . . 61 Absorbed by Shields . | . . . . . Core Remaining (%) 100 | 100 . . . . Volleys Fired 85 | 7 68 . . 10 Largest 2 | 2 2 . . 2 Hottest 90 | 90 90 . . 60 Shots Fired 162 | 14 127 1 . 20 Gun 142 | 14 127 1 . . Cannon . | . . . . . Launcher 20 | . . . . 20 Special . | . . . . . Kinetic . | . . . . . Thermal 142 | 14 127 1 . . Explosive 20 | . . . . 20 Electromagnetic . | . . . . . Robot Hit Streak 17 | 4 17 . . 3 Robot Miss Streak 4 | 2 4 . . 1 Penetration Max . | . . . . . Secondary Targets 2 | . 2 . . . Max Gunslinging Chain 1 | . 1 . . . Shots Hit Robots 97 | 9 82 . . 6 Core Hits 67 | 3 44 . . 20 Critical Kills . | . . . . . Critical Parts Destroyed . | . . . . . Critical Strikes 3 | . 3 . . . Burn 3 | . 3 . . . Melee Attacks . | . . . . . Impact . | . . . . . Slashing . | . . . . . Piercing . | . . . . . Sneak Attacks . | . . . . . Combat Hostiles . | . . . . . Follow-up Attacks . | . . . . . Damage Inflicted 1877 | 105 1050 . . 722 Guns 1155 | 105 1050 . . . Cannons . | . . . . . Explosions 722 | . . . . 722 Melee . | . . . . . Ramming . | . . . . . Kinetic . | . . . . . Thermal 1155 | 105 1050 . . . Explosive 722 | . . . . 722 Electromagnetic . | . . . . . Impact . | . . . . . Slashing . | . . . . . Piercing . | . . . . . Highest Corruption 1 | . 1 1 1 1 Average Corruption 1 | . 1 1 1 1 Corruption Purged . | . . . . . Corruption Blocked . | . . . . . Effects 22 | . 7 9 4 2 Message Errors 8 | . 3 3 1 1 Heat Flow Errors 2 | . 1 1 . . Energy Discharges 5 | . 1 1 2 1 Parts Rejected 1 | . 1 . . . Parts Fused 1 | . . . 1 . Data Loss (minor) 4 | . 1 3 . . Misfires 1 | . . 1 . . Overload Shots . | . . . . . Overflow Damage . | . . . . . Projectiles . | . . . . . Explosions . | . . . . . Melee . | . . . . . Knockbacks . | . . . . . Impact . | . . . . . Kinetic . | . . . . . Secondary . | . . . . . Self-Inflicted Damage 52 | . . . . 52 Shots 2 | . . . . 2 Rammed . | . . . . . Targets Rammed . | . . . . . Kicked . | . . . . . Crushed . | . . . . . Highest Temperature 427 | 120 427 253 . 12 Average Temperature 125 | 46 141 141 . 6 Received Heat Transfer 555 | . 462 . . 93 Effects 4 | . 4 . . . Energy Bleed 3 | . 3 . . . Interference 1 | . 1 . . . Siege Activations . | . . . . . Martial Activations . | . . . . . Shielding Activations . | . . . . . Robots Disrupted . | . . . . . Combat Hostiles . | . . . . . Robots Corrupted . | . . . . . Combat Hostiles . | . . . . . Parts Fried . | . . . . . Impact Corruptions . | . . . . . Robots Melted . | . . . . . Combat Hostiles . | . . . . . Parts Melted 5 | 1 4 . . . Heat Transferred 3272 | 273 2999 . . . Parts Sabotaged . | . . . . . Parts Stolen . | . . . . . Parts Stripped . | . . . . . Power Chain Reactions . | . . . . . Alert | -11 -10 -10 -10 -9 ------- Run | Yrd Mat Min Exi Min Maximum Alert Level . | . . . . . Low Security (%) 100 | 100 100 100 . 100 Level 1 . | . . . . . Level 2 . | . . . . . Level 3 . | . . . . . Level 4 . | . . . . . Level 5 . | . . . . . High Security . | . . . . . Max Security . | . . . . . Peak Influence 189 | 10 82 21 . 189 Initial 21 | . . 21 . . Average 30 | . 27 . . 119 Influence Increases 858 | 15 449 5 . 389 Destroy 0b10 Robot/C 560 | . 300 . . 260 Destroy 0b10 Robot/NC 45 | 15 30 . . . Destroy Leader 136 | . 86 . . 50 Successful Hack 23 | . 18 5 . . Destroy Structure 79 | . . . . 79 Partial Spotted 15 | . 15 . . . Influence Decreases 669 | 15 393 61 . 200 Entered New Map 35 | . . 35 . . Time Decay 604 | 15 373 26 . 190 Lost Part 30 | . 20 . . 10 Squads Dispatched 5 | . 5 . . . Investigation 3 | . 3 . . . Extermination . | . . . . . Reinforcement 2 | . 2 . . . Assault . | . . . . . Garrison . | . . . . . Intercept . | . . . . . Searches Triggered . | . . . . . Construction Impeded . | . . . . . Haulers Reinforced . | . . . . . Active Scanning Responses . | . . . . . Cargo Convoy Interrupts . | . . . . . Stealth | -11 -10 -10 -10 -9 --------- Run | Yrd Mat Min Exi Min Distress Signals 4 | . 4 . . . Communications Jammed . | . . . . . Distress Signals . | . . . . . Times Spotted 42 | . 27 . . 15 Peak Tracking Total 6 | . 6 . . 6 Tactical Retreats . | . . . . . Traps | -11 -10 -10 -10 -9 ------- Run | Yrd Mat Min Exi Min Traps Triggered 3 | . 3 . . . Indirectly . | . . . . . Trap Hack Attempts . | . . . . . Triggered . | . . . . . Disarmed . | . . . . . Reprogrammed . | . . . . . Reused . | . . . . . Traps Extracted . | . . . . . Installed . | . . . . . Triggered . | . . . . . Machines | -11 -10 -10 -10 -9 ---------- Run | Yrd Mat Min Exi Min Machines Disabled . | . . . . . Max in Single Turn . | . . . . . Machines Repaired . | . . . . . Machines Dismantled . | . . . . . Machines Sabotaged . | . . . . . Overloaded Fab Kills . | . . . . . Hacking | -11 -10 -10 -10 -9 --------- Run | Yrd Mat Min Exi Min Machines Accessed 10 | . 7 1 2 . Terminals 7 | . 6 1 . . Fabricators . | . . . . . Repair Stations . | . . . . . Recycling Units 1 | . 1 . . . Scanalyzers . | . . . . . Garrison Access . | . . . . . Total Hacks 24 | . 20 2 2 . Successful 13 | . 10 1 2 . Failed 11 | . 10 1 . . Catastrophic 1 | . 1 . . . Database Lockouts . | . . . . . Manual 19 | . 18 . 1 . Terminals 20 | . 18 2 . . Fabricators . | . . . . . Repair Stations . | . . . . . Recycling Units 2 | . 2 . . . Scanalyzers . | . . . . . Garrison Access . | . . . . . Terminal Hacks 3 | . . 1 2 . Record 1 | . . . 1 . Zone Layout 1 | . . 1 . . Proto ID Catalog 1 | . . . 1 . Fabricator Hacks . | . . . . . Repair Station Hacks . | . . . . . Recycling Unit Hacks 1 | . 1 . . . Retrieve Components 1 | . 1 . . . Scanalyzer . | . . . . . Garrison Access Hacks . | . . . . . Unauthorized Hacks 9 | . 9 . . . Terminals 9 | . 9 . . . Track 1 | . 1 . . . Assimilate 1 | . 1 . . . Botnet 2 | . 2 . . . Skim 5 | . 5 . . . Fabricators . | . . . . . Repair Stations . | . . . . . Recycling Units . | . . . . . Scanalyzers . | . . . . . Garrison Access . | . . . . . Data Cores Recovered . | . . . . . Used . | . . . . . Hacking Detections 7 | . 6 1 . . Full Trace Events 1 | . 1 . . . Feedback Events . | . . . . . Feedback Blocked . | . . . . . Robot Schematics Acquired . | . . . . . Robots Built . | . . . . . Authchips . | . . . . . Time . | . . . . . Total Robot Build Rating . | . . . . . Part Schematics Acquired . | . . . . . Parts Built . | . . . . . Authchips . | . . . . . Time . | . . . . . Total Part Build Rating . | . . . . . Parts Repaired . | . . . . . Time . | . . . . . Parts Recycled . | . . . . . Recycled Matter . | . . . . . Retrieved Matter . | . . . . . Retrieved Components 10 | . 10 . . . Parts Scanalyzed . | . . . . . Part Schematics Acquired . | . . . . . Parts Damaged . | . . . . . Bothacking | -11 -10 -10 -10 -9 ------------ Run | Yrd Mat Min Exi Min Used RIF Installer . | . . . . . Robots Hacked . | . . . . . Non-combat . | . . . . . Combat . | . . . . . Robot Hacks Applied . | . . . . . Relay Couplers Released . | . . . . . Fabnet Peak Effective % . | . . . . . Robots Rewired . | . . . . . Allies Hacked . | . . . . . Hacks Repelled . | . . . . . Allies | -11 -10 -10 -10 -9 -------- Run | Yrd Mat Min Exi Min Total Allies 1 | . . 1 . . Largest Group 1 | . . 1 . . Highest-Rated Group 31 | . . 31 . . Highest-Rated Ally 31 | . . 31 . . Total Orders . | . . . . . Ally Attacks . | . . . . . Total Damage . | . . . . . Kills . | . . . . . Allies Corrupted . | . . . . . Allies Melted . | . . . . . Intel | -11 -10 -10 -10 -9 ------- Run | Yrd Mat Min Exi Min Active Infowar (turns) 439 | 66 373 . . . Seismic 439 | 66 373 . . . Robot Analysis Total . | . . . . . Derelict Logs Recovered 2 | . . 1 . 1 Drone Launches . | . . . . . Drone Recoveries . | . . . . . Exploration | -11 -10 -10 -10 -9 ------------- Run | Yrd Mat Min Exi Min Turns Passed 3646 | 151 1567 935 599 394 Spaces Moved 1699 | 74 549 534 342 200 Core 2 | 2 . . . . Treads 336 | 72 264 . . . Legs . | . . . . . Wheels 1361 | . 285 534 342 200 Hover . | . . . . . Flight . | . . . . . Fastest Speed 50 | 50 160 175 175 175 Average Speed 193 | 157 233 175 175 175 Slowest Speed 320 | 160 320 175 175 175 Overloaded Moves . | . . . . . Propulsion Burnouts . | . . . . . Robots Hopped . | . . . . . Potential Cave-ins . | . . . . . Cave-ins Triggered . | . . . . . Exploration Rate (%) 63 | 5 81 98 78 56 Regions Visited 4 Branch Regions 3 Pre-discovered Areas 3 | . 1 1 1 . Known Exits Taken . | . . . . . Unknown Exits Taken 4 | 1 1 1 1 . Scrap Searched 1 | . . 1 . . Spaces Dug . | . . . . . Terrain Destroyed 123 | . . . . 123 Melee . | . . . . . Projectile . | . . . . . AOE 123 | . . . . 123 Terrain Rammed . | . . . . . Walls Destroyed . | . . . . . Machines Disabled . | . . . . . Actions | -11 -10 -10 -10 -9 --------- Run | Yrd Mat Min Exi Min Total 1900 | 91 705 535 344 225 Wait 78 | . 67 . . 11 Move 1695 | 73 548 533 341 200 Hop . | . . . . . Pick Up 21 | 4 14 2 1 . Fast Attach 10 | 7 3 . . . Attach 6 | . 3 . . 3 Detach 2 | . . . 2 . Swap 2 | . 1 . . 1 Drop 1 | . 1 . . . Fire 85 | 7 68 . . 10 Melee . | . . . . . Ram . | . . . . . Kick . | . . . . . Crush . | . . . . . Escape Stasis . | . . . . . Rewire . | . . . . . Trap . | . . . . . Miscellaneous . | . . . . . Route ------- -11/Scrapyard -10/Materials (discovered 6 exits: *Mat x3 / *Min x2 / [*Sub]) -10/Mines (discovered 3 exits: *Mat x2 / *Exi) -10/Exiles -9/Mines History --------- Turn | Location | Event 4 | -11/Scrapyard | Discovered new exit (range 16) 152 | -11/Scrapyard | Entered Materials 313 | -10/Materials | Build established: Mutant 477 | -10/Materials | Discovered new exit (range 13) 713 | -10/Materials | Discovered new exit (range 16) 802 | -10/Materials | Discovered new exit (range 6) 1170 | -10/Materials | Core integrity fell below 50% 1404 | -10/Materials | Learned Storage terminal intel 1467 | -10/Materials | Learned location of Storage (-8) 1522 | -10/Materials | Learned 2 Storage zone layouts 1565 | -10/Materials | Identified exit to Materials 1569 | -10/Materials | Discovered new exit (range 4) 1597 | -10/Materials | Learned location of 1 exit from Recycling 1655 | -10/Materials | Learned location of 1 exit from Storage 1719 | -10/Materials | Entered Mines 1746 | -10/Mines | Deemed a non-threat by the Exiles lab entrance 1750 | -10/Mines | Met a Derelict bent on vengeance 2106 | -10/Mines | Received a Mining Laser from a helpful Derelict 2647 | -10/Mines | Discovered new exit (range 5) 2654 | -10/Mines | Entered Exiles 2701 | -10/Exiles | Met 8R-AWN 2731 | -10/Exiles | Met EX-HEX 2781 | -10/Exiles | Met EX-BIN 2806 | -10/Exiles | Aligned with FarCom system 2808 | -10/Exiles | Given EX-Vault access code 2853 | -10/Exiles | Opened EX-Vault 2865 | -10/Exiles | Found Army-in-a-Box 2900 | -10/Exiles | Warned to stay clear of 0b10 Research branches 2950 | -10/Exiles | Met EX-DEC 2957 | -10/Exiles | Learned location of Zion (-7) 3044 | -10/Exiles | Visited The Gauntlet 3237 | -10/Exiles | Discovered new exit (range 10) 3253 | -10/Exiles | Left Exiles lab with Army-in-a-Box 3253 | -10/Exiles | Entered Mines 3258 | -9/Mines | Core integrity fell below 20% 3647 | -9/Mines | Destroyed by S-10 Pest with Light Assault Rifle Last Messages --------------- 03379_ Lgt. Nuclear Core destroyed. 03383_ G-34 Mercenary destroyed. 03383_ Destroyed Imp. Heat Sink. 03386_ G-47 Trooper destroyed. 03403_ Acquired 10 matter. 03409_ The unstable cave ceiling collapses. 03410_ Acquired 2 matter. 03414_ The unstable cave ceiling collapses. 03485_ Acquired derelict log, extracted data. Data stored: Storage entrances (x1). 03536_ C-30 ARC bursts open, deploying its payload. 03538_ G-34 Mercenary destroyed. 03541_ B-36 Bruiser destroyed. 03546_ NEI/U6 R5KUEC&10ZECN=HYKWEM8XV=MBI7T 03556_ Acquired 44 matter. 03559_ Acquired 57 matter. 03562_ The unstable cave ceiling collapses. 03625_ K-01 Serf collects debris. 03628_ K-01 Serf cleans the Core Extractor. 03646_ S-10 Pest destroyed. Map ----- +----------------------------------------------------+ | ??????# ###????# #????????????????# | | ?????? ### #???????# #????????????????# | | ??????? ????## ????????? ?????????????????## | | ??????????????# ????????? ??????????????????### | | ??????????????# ????????? ????????????????????# | | ??????????????## ?????????? ????????????????????# | | ???????????????# ?????????? ????????????????????# | | ???????????????# ??????????#????????????????????# | | ??????????????? ????????????????????????????????# | | ??????????????? ????????????????????????????????# | | ?????????????? ????????????????????????????????# | | ?????????????????????????????????????????????????# | | ???????????????????????????????????????????####### | | ???????????????????????????????????????????# | | ???????????????????????????????????????????# | | ????????????????????????????????????????????# | | ????????????????????????????????????????????#### | | ????????????????????????????#######?????????##### | | ???????????????????##???????# ##????????# # # | | ?????????? ???? ####### #????????# | | ?????????????? # ## #????????# * | | ????????????????????# ss% ## #????????# = | | ????????????????????### = # #?????????# | | ??????????????????????# [ # #???????#### # | | ???????????????????????# # ########## # | | ???????????????????????# @ # ## | | ??????????????????????## ######? | | ???????????????###????# """ ###########?????? | | ??????????????## ##### """ #???????????????? | | ??????????????# ## """ #???????????????? | | ??????????????# ##???????????????? | | ??????????????## #####????????????????? | | ???????????????## ##????????????????????? | | ????????????????############?????????????????????? | | ?????????????????????????????????????????????????? | | | | | | | | | | | | | | | | | | | | | | | | | | | | | | | +----------------------------------------------------+ Best States ------------- Heat Dissipation 39 Energy Generation 14 Energy Capacity 250 Matter Stores 300 Matter Capacity 300 Sight Range 16 Terrain Scan Density 10 Armor Coverage 150 Evasion (%) 40 Recoil Reduction 2 Item Schematics ----------------- None Robot Schematics ------------------ None Fabricated ------------ Nothing Repaired ---------- Nothing Alien Tech Used ----------------- None Achievements -------------- None Challenges ------------ None Game ------ Seed ChargeShieldReconfigurator Manual? 0 Play Time 00:14:39 Cumulative 203.6 hours Start 2025.07.24 @ 17:03:49 End 2025.07.24 @ 17:21:48 Sessions 1 Manual Loads 0 Difficulty Rogue Special Mode None Game No. 180 Rogue 180 Adventurer 0 Explorer 0 Win Type - Total 11 Types 5/0/4/2/0/0/0/0/0/0 Lore% 74 Gallery% 70 Achievement% 66 Wizard Run 0 Options --------- Layout 1 ASCII 0 Keyboard 0 Movement Mouse Keybinds 0 Fullscreen 1 Font 32/SmallcapsGlow Map View 77x35 Zoom Use 0% Tactical HUD 1 Map Filters NONE Filters NONE Steam 1 RUN: b058450e-3dac-4ec0-8957-027e9cc726b8